[Event "European Online Club-ch-A 2021"]
[Site "Online"]
[Date "2021.03.27"]
[Round "3.18"]
[White "Fitzsimons, David"]
[Black "Vovk, Orest"]
[Result "0-1"]
[ECO "B00"]
[WhiteElo "2324"]
[BlackElo "2315"]
[Annotator "NA"]
[PlyCount "100"]
[EventDate "2021.03.27"]
[EventType "team-tourn"]
[EventCountry "NET"]
[SourceTitle "playchess.com"]
[Source "ChessBase"]
[SourceQuality "1"]
[TimeControl "900+5"]

1. e4 {[%emt 0:00:00]} g5 {[%emt 0:00:09]} 2. d4 {[%emt 0:00:04]} h6 {[%emt 0:00:03]} 3. Nc3 {[%emt 0:00:04]} Bg7 {[%emt 0:00:04]} 4. Be3 {[%emt 0:00:02]} d6 {[%emt 0:00:09]} 5. Nge2 {[%emt 0:00:03]} Nf6 {[%emt 0:00:11]} 6. Ng3 {[%emt 0:00:11]} c6 {[%emt 0:00:15]} 7. Be2 {[%emt 0:00:07]} Na6 {[%emt 0:00:38]} 8. h4 {[%emt 0:00:14]} g4 {[%emt 0:00:35]} 9. e5 {[%emt 0:00:33]} dxe5 {[%emt 0:00:43]} 10. dxe5 {[%emt 0:00:03]} Qxd1+ {[%emt 0:00:12]} 11. Rxd1 {[%emt 0:00:02]} Nd5 {[%emt 0:01:00]} 12. Nxd5 {[%emt 0:00:05]} cxd5 {[%emt 0:00:02]} 13. Rxd5 {[%emt 0:00:04]} Nc7 {[%emt 0:01:22]} 14. Rc5 {[%emt 0:00:51]} Ne6 {[%emt 0:01:36]} 15. Ra5 {[%emt 0:00:03]} O-O {[%emt 0:01:46]} 16. Nf5 {[%emt 0:00:37]} b6 {[%emt 0:00:41]} 17. Ra4 {[%emt 0:01:01]} Nc5 {[%emt 0:01:00]} 18. Nxe7+ {[%emt 0:00:19]} Kh8 {[%emt 0:00:03]} 19. Bxc5 {[%emt 0:01:12]} bxc5 {[%emt 0:00:02]} 20. Nxc8 {[%emt 0:00:23]} Raxc8 {[%emt 0:00:29]} 21. Bxg4 {[%emt 0:00:02]} Rb8 {[%emt 0:00:05]} 22. b3 {[%emt 0:00:33]} Bxe5 {[%emt 0:00:07]} 23. Rxa7 {[%emt 0:00:03]} Bc3+ {[%emt 0:00:06]} 24. Kf1 {[%emt 0:00:12]} Rbd8 {[%emt 0:01:01]} 25. g3 {[%emt 0:00:15]} f5 {[%emt 0:00:45]} 26. Be2 {[%emt 0:00:36]} Rd2 {[%emt 0:00:06]} 27. Bd3 {[%emt 0:00:44]} Bd4 {[%emt 0:00:14]} 28. Rh2 {[%emt 0:00:36]} c4 {[%emt 0:00:22]} 29. bxc4 {[%emt 0:00:44]} Bxa7 {[%emt 0:00:19]} 30. Ke1 {[%emt 0:00:01]} Rxd3 {[%emt 0:00:11]} 31. cxd3 {[%emt 0:00:03]} Rd8 {[%emt 0:00:20]} 32. Kd2 {[%emt 0:00:03]} Bd4 {[%emt 0:00:03]} 33. f3 {[%emt 0:00:03]} Ra8 {[%emt 0:00:12]} 34. Kc1 {[%emt 0:00:02]} Ra3 {[%emt 0:00:07]} 35. Rc2 {[%emt 0:00:12]} Rxd3 {[%emt 0:00:20]} 36. c5 {[%emt 0:00:04]} Be5 {[%emt 0:00:16]} 37. g4 {[%emt 0:00:30]} f4 {[%emt 0:00:15]} 38. c6 {[%emt 0:00:12]} Bc7 {[%emt 0:00:02]} 39. a4 {[%emt 0:01:04]} Rxf3 {[%emt 0:00:04]} 40. Re2 {[%emt 0:00:25]} Rc3+ {[%emt 0:00:11]} 41. Rc2 {[%emt 0:00:03]} Rd3 {[%emt 0:00:38]} 42. Rd2 {[%emt 0:00:48]} Ra3 {[%emt 0:00:23]} 43. Rd7 {[%emt 0:00:13]} Rc3+ {[%emt 0:00:05]} 44. Kd2 {[%emt 0:00:09]} Rxc6 {[%emt 0:00:02]} 45. Kd3 {[%emt 0:00:02]} Kg8 {[%emt 0:00:28]} 46. g5 {[%emt 0:00:10]} hxg5 {[%emt 0:00:04]} 47. hxg5 {[%emt 0:00:02]} f3 {[%emt 0:00:27]} 48. g6 {[%emt 0:00:47]} f2 {[%emt 0:00:07]} 49. Rf7 {[%emt 0:00:11]} Bg3 {[%emt 0:00:11]} 50. Rf3 {[%emt 0:00:50]} Rc1 {[%emt 0:00:09]} 0-1

[Event "European Online Club-ch-A 2021"]
[Site "Online"]
[Date "2021.03.27"]
[Round "3.19"]
[White "Babiy, Igor"]
[Black "De Verdier, Michael"]
[Result "1-0"]
[ECO "E05"]
[WhiteElo "2241"]
[BlackElo "2291"]
[Annotator "NA"]
[PlyCount "109"]
[EventDate "2021.03.27"]
[EventType "team-tourn"]
[EventCountry "NET"]
[SourceTitle "playchess.com"]
[Source "ChessBase"]
[SourceQuality "1"]
[TimeControl "900+5"]

1. Nf3 {[%emt 0:00:00]} d5 {[%emt 0:00:05]} 2. c4 {[%emt 0:00:04]} e6 {[%emt 0:00:03]} 3. g3 {[%emt 0:00:02]} Nf6 {[%emt 0:00:12]} 4. Bg2 {[%emt 0:00:01]} Be7 {[%emt 0:00:14]} 5. O-O {[%emt 0:00:04]} O-O {[%emt 0:00:02]} 6. d4 {[%emt 0:00:03]} dxc4 {[%emt 0:00:28]} 7. Qc2 {[%emt 0:00:32]} a6 {[%emt 0:00:06]} 8. a4 {[%emt 0:00:03]} Bd7 {[%emt 0:00:19]} 9. Rd1 {[%emt 0:00:22]} Bc6 {[%emt 0:00:16]} 10. Nc3 {[%emt 0:00:02]} Bb4 {[%emt 0:00:49]} 11. Bg5 {[%emt 0:00:18]} Nbd7 {[%emt 0:00:18]} 12. d5 {[%emt 0:01:14]} exd5 {[%emt 0:00:30]} 13. Nxd5 {[%emt 0:00:25]} Be7 {[%emt 0:03:22]} 14. Nxf6+ {[%emt 0:01:04]} Bxf6 {[%emt 0:00:11]} 15. Ne5 {[%emt 0:00:02]} Bxg5 {[%emt 0:02:05]} 16. Bxc6 {[%emt 0:00:21]} bxc6 {[%emt 0:00:53]} 17. Nxd7 {[%emt 0:00:04]} Re8 {[%emt 0:00:09]} 18. Nb6 {[%emt 0:00:02]} cxb6 {[%emt 0:00:13]} 19. Rxd8 {[%emt 0:00:03]} Raxd8 {[%emt 0:00:02]} 20. Qxc4 {[%emt 0:01:10]} Rd2 {[%emt 0:00:16]} 21. e3 {[%emt 0:00:05]} Rxb2 {[%emt 0:00:32]} 22. Rd1 {[%emt 0:00:52]} Bf6 {[%emt 0:00:43]} 23. Qxc6 {[%emt 0:00:06]} Rf8 {[%emt 0:00:12]} 24. Rd7 {[%emt 0:00:22]} a5 {[%emt 0:00:19]} 25. Rb7 {[%emt 0:00:13]} h6 {[%emt 0:00:24]} 26. Rxb6 {[%emt 0:00:32]} Rxb6 {[%emt 0:00:00]} 27. Qxb6 {[%emt 0:00:01]} Bc3 {[%emt 0:00:02]} 28. Qc6 {[%emt 0:00:17]} Bb4 {[%emt 0:00:04]} 29. Kg2 {[%emt 0:00:04]} Rd8 {[%emt 0:00:09]} 30. g4 {[%emt 0:00:19]} g6 {[%emt 0:00:10]} 31. h4 {[%emt 0:00:10]} Rd2 {[%emt 0:00:27]} 32. h5 {[%emt 0:00:11]} Rd6 {[%emt 0:00:16]} 33. Qc8+ {[%emt 0:00:17]} Kg7 {[%emt 0:00:02]} 34. hxg6 {[%emt 0:00:26]} Rxg6 {[%emt 0:00:03]} 35. Kf3 {[%emt 0:00:03]} Rg5 {[%emt 0:00:24]} 36. Ke2 {[%emt 0:00:04]} h5 {[%emt 0:00:43]} 37. gxh5 {[%emt 0:00:18]} Rxh5 {[%emt 0:00:00]} 38. Qg4+ {[%emt 0:00:02]} Kh6 {[%emt 0:00:02]} 39. f4 {[%emt 0:00:02]} Rc5 {[%emt 0:00:36]} 40. f5 {[%emt 0:00:48]} Rc2+ {[%emt 0:01:20]} 41. Kf3 {[%emt 0:00:08]} Rc3 {[%emt 0:00:02]} 42. Qh4+ {[%emt 0:00:19]} Kg7 {[%emt 0:00:02]} 43. Qg5+ {[%emt 0:00:02]} Kf8 {[%emt 0:00:08]} 44. Qd8+ {[%emt 0:01:22]} Kg7 {[%emt 0:00:02]} 45. Qg5+ {[%emt 0:00:01]} Kf8 {[%emt 0:00:02]} 46. Qd8+ {[%emt 0:00:02]} Kg7 {[%emt 0:00:02]} 47. Qd4+ {[%emt 0:00:01]} Kh7 {[%emt 0:00:42]} 48. Kg4 {[%emt 0:01:17]} Rc7 {[%emt 0:00:30]} 49. Kh5 {[%emt 0:02:09]} Rc5 {[%emt 0:00:09]} 50. Qf6 {[%emt 0:00:35]} Rc7 {[%emt 0:00:05]} 51. Qh6+ {[%emt 0:00:19]} Kg8 {[%emt 0:00:01]} 52. Qg5+ {[%emt 0:00:01]} Kh7 {[%emt 0:00:01]} 53. e4 {[%emt 0:00:49]} Re7 {[%emt 0:00:03]} 54. f6 {[%emt 0:00:09]} Rxe4 {[%emt 0:00:18]} 55. Qg7# {[%emt 0:00:03]} 1-0

[Event "European Online Club-ch-A 2021"]
[Site "Online"]
[Date "2021.03.27"]
[Round "3.20"]
[White "Czopor, Maciej"]
[Black "Hulka, Valentyn"]
[Result "1-0"]
[ECO "B90"]
[WhiteElo "2239"]
[BlackElo "2089"]
[Annotator "NA"]
[PlyCount "89"]
[EventDate "2021.03.27"]
[EventType "team-tourn"]
[EventCountry "NET"]
[SourceTitle "playchess.com"]
[Source "ChessBase"]
[SourceQuality "1"]
[TimeControl "900+5"]

1. e4 {[%emt 0:00:00]} c5 {[%emt 0:00:02]} 2. Nf3 {[%emt 0:00:03]} d6 {[%emt 0:00:02]} 3. d4 {[%emt 0:00:05]} cxd4 {[%emt 0:00:01]} 4. Nxd4 {[%emt 0:00:17]} Nf6 {[%emt 0:00:04]} 5. Nc3 {[%emt 0:00:05]} a6 {[%emt 0:00:02]} 6. Be3 {[%emt 0:00:12]} e5 {[%emt 0:00:03]} 7. Nb3 {[%emt 0:00:02]} Be6 {[%emt 0:00:01]} 8. Qd2 {[%emt 0:00:05]} Nbd7 {[%emt 0:00:43]} 9. f3 {[%emt 0:00:17]} Be7 {[%emt 0:00:50]} 10. O-O-O {[%emt 0:00:08]} O-O {[%emt 0:00:01]} 11. g4 {[%emt 0:00:02]} b5 {[%emt 0:00:02]} 12. g5 {[%emt 0:00:06]} Nh5 {[%emt 0:00:01]} 13. Kb1 {[%emt 0:00:52]} Nb6 {[%emt 0:01:15]} 14. Nd5 {[%emt 0:00:33]} Nxd5 {[%emt 0:01:12]} 15. exd5 {[%emt 0:00:03]} Bd7 {[%emt 0:00:01]} 16. Na5 {[%emt 0:00:39]} Qc7 {[%emt 0:00:31]} 17. Bd3 {[%emt 0:00:34]} Rac8 {[%emt 0:02:26]} 18. Rhg1 {[%emt 0:00:43]} Bd8 {[%emt 0:00:27]} 19. Nc6 {[%emt 0:00:09]} g6 {[%emt 0:01:55]} 20. h4 {[%emt 0:01:02]} f5 {[%emt 0:01:52]} 21. gxf6 {[%emt 0:00:21]} Bxf6 {[%emt 0:00:02]} 22. Be4 {[%emt 0:01:38]} Kh8 {[%emt 0:00:32]} 23. Qd3 {[%emt 0:03:20]} Bg7 {[%emt 0:01:32]} 24. Rg2 {[%emt 0:03:35]} Nf6 {[%emt 0:01:54]} 25. h5 {[%emt 0:00:14]} Nxe4 {[%emt 0:00:20]} 26. fxe4 {[%emt 0:00:12]} gxh5 {[%emt 0:00:43]} 27. Ne7 {[%emt 0:01:40]} Rce8 {[%emt 0:00:20]} 28. Nf5 {[%emt 0:00:01]} Bxf5 {[%emt 0:00:03]} 29. exf5 {[%emt 0:00:01]} e4 {[%emt 0:00:01]} 30. Qf1 {[%emt 0:00:01]} Qc4 {[%emt 0:00:19]} 31. Qg1 {[%emt 0:00:16]} Be5 {[%emt 0:00:01]} 32. Rg5 {[%emt 0:00:11]} Qe2 {[%emt 0:00:06]} 33. Re1 {[%emt 0:00:06]} Qc4 {[%emt 0:00:05]} 34. Rxh5 {[%emt 0:00:05]} Qxd5 {[%emt 0:00:03]} 35. Qg6 {[%emt 0:00:06]} Rf7 {[%emt 0:00:07]} 36. Reh1 {[%emt 0:00:08]} Ree7 {[%emt 0:00:01]} 37. Bg5 {[%emt 0:00:05]} Rg7 {[%emt 0:00:05]} 38. Bxe7 {[%emt 0:00:06]} Rxg6 {[%emt 0:00:02]} 39. fxg6 {[%emt 0:00:06]} e3 {[%emt 0:00:09]} 40. Bf6+ {[%emt 0:00:04]} Kg8 {[%emt 0:00:11]} 41. gxh7+ {[%emt 0:00:02]} Kf7 {[%emt 0:00:01]} 42. h8=Q {[%emt 0:00:05]} e2 {[%emt 0:00:01]} 43. Qg7+ {[%emt 0:00:03]} Ke6 {[%emt 0:00:01]} 44. Qg8+ {[%emt 0:00:03]} Kxf6 {[%emt 0:00:03]} 45. Qxd5 {[%emt 0:00:01]} 1-0

[Event "European Online Club-ch-A 2021"]
[Site "Online"]
[Date "2021.03.27"]
[Round "4.1"]
[White "Horvath, Laszlo"]
[Black "Fitzsimons, David"]
[Result "1-0"]
[ECO "B06"]
[WhiteElo "2183"]
[BlackElo "2324"]
[Annotator "NA"]
[PlyCount "45"]
[EventDate "2021.03.27"]
[EventType "team-tourn"]
[EventCountry "NET"]
[SourceTitle "playchess.com"]
[Source "ChessBase"]
[SourceQuality "1"]
[TimeControl "900+5"]

1. e4 {[%emt 0:00:00]} g6 {[%emt 0:00:04]} 2. d4 {[%emt 0:00:06]} Bg7 {[%emt 0:00:01]} 3. Nf3 {[%emt 0:00:07]} c6 {[%emt 0:00:01]} 4. c3 {[%emt 0:00:03]} d5 {[%emt 0:00:02]} 5. e5 {[%emt 0:00:04]} f6 {[%emt 0:00:02]} 6. exf6 {[%emt 0:00:03]} Nxf6 {[%emt 0:00:02]} 7. Bd3 {[%emt 0:00:03]} O-O {[%emt 0:00:02]} 8. O-O {[%emt 0:00:21]} Bg4 {[%emt 0:00:23]} 9. Be3 {[%emt 0:00:10]} Nbd7 {[%emt 0:00:07]} 10. Nbd2 {[%emt 0:00:04]} e5 {[%emt 0:00:02]} 11. dxe5 {[%emt 0:00:02]} Nxe5 {[%emt 0:00:02]} 12. Be2 {[%emt 0:00:02]} Nxf3+ {[%emt 0:00:06]} 13. Bxf3 {[%emt 0:00:06]} Bxf3 {[%emt 0:00:04]} 14. Nxf3 {[%emt 0:00:03]} Qd6 {[%emt 0:00:02]} 15. h3 {[%emt 0:00:18]} Rae8 {[%emt 0:00:27]} 16. Qb3 {[%emt 0:00:28]} b6 {[%emt 0:00:09]} 17. c4 {[%emt 0:00:08]} c5 {[%emt 0:00:14]} 18. cxd5 {[%emt 0:00:05]} Qxd5 {[%emt 0:00:03]} 19. Qa4 {[%emt 0:00:42]} Qb7 {[%emt 0:00:19]} 20. Rad1 {[%emt 0:00:07]} Re4 {[%emt 0:00:21]} 21. Qb3+ {[%emt 0:00:03]} Kh8 {[%emt 0:00:16]} 22. Bxc5 {[%emt 0:00:14]} Nh5 {[%emt 0:00:51]} 23. Bxf8 {[%emt 0:00:08]} 1-0

[Event "European Online Club-ch-A 2021"]
[Site "Online"]
[Date "2021.03.27"]
[Round "4.2"]
[White "De Verdier, Michael"]
[Black "Krieger, Markus"]
[Result "1-0"]
[ECO "A28"]
[WhiteElo "2291"]
[BlackElo "2050"]
[Annotator "NA"]
[PlyCount "89"]
[EventDate "2021.03.27"]
[EventType "team-tourn"]
[EventCountry "NET"]
[SourceTitle "playchess.com"]
[Source "ChessBase"]
[SourceQuality "1"]
[TimeControl "900+5"]

1. c4 {[%emt 0:00:00]} e5 {[%emt 0:00:03]} 2. Nc3 {[%emt 0:00:06]} Bb4 {[%emt 0:00:04]} 3. Qc2 {[%emt 0:00:25]} Nc6 {[%emt 0:00:07]} 4. e3 {[%emt 0:00:03]} Nf6 {[%emt 0:00:19]} 5. Nf3 {[%emt 0:00:05]} O-O {[%emt 0:00:05]} 6. Nd5 {[%emt 0:00:03]} Bd6 {[%emt 0:00:29]} 7. Ng5 {[%emt 0:01:34]} g6 {[%emt 0:00:12]} 8. Nxf6+ {[%emt 0:00:03]} Qxf6 {[%emt 0:00:00]} 9. Ne4 {[%emt 0:00:01]} Qe6 {[%emt 0:00:09]} 10. Nxd6 {[%emt 0:01:03]} Qxd6 {[%emt 0:00:07]} 11. d3 {[%emt 0:00:13]} Qe7 {[%emt 0:00:22]} 12. Be2 {[%emt 0:00:08]} d6 {[%emt 0:00:20]} 13. O-O {[%emt 0:00:05]} f5 {[%emt 0:00:06]} 14. Bd2 {[%emt 0:00:28]} b6 {[%emt 0:00:57]} 15. Bf3 {[%emt 0:00:40]} Bb7 {[%emt 0:00:07]} 16. Bd5+ {[%emt 0:00:08]} Kg7 {[%emt 0:00:09]} 17. Bc3 {[%emt 0:01:24]} Nd8 {[%emt 0:00:50]} 18. Bxb7 {[%emt 0:00:16]} Nxb7 {[%emt 0:00:00]} 19. b4 {[%emt 0:00:20]} f4 {[%emt 0:00:45]} 20. exf4 {[%emt 0:00:44]} Rxf4 {[%emt 0:00:05]} 21. Rae1 {[%emt 0:00:01]} c5 {[%emt 0:00:47]} 22. bxc5 {[%emt 0:00:47]} bxc5 {[%emt 0:00:08]} 23. Qb2 {[%emt 0:00:51]} Re8 {[%emt 0:01:55]} 24. Re3 {[%emt 0:01:05]} Nd8 {[%emt 0:00:17]} 25. g3 {[%emt 0:00:08]} Rf5 {[%emt 0:01:17]} 26. f4 {[%emt 0:01:14]} Nc6 {[%emt 0:00:28]} 27. Rfe1 {[%emt 0:00:13]} Kf8 {[%emt 0:01:59]} 28. Re4 {[%emt 0:01:21]} Nd4 {[%emt 0:00:57]} 29. Bxd4 {[%emt 0:00:08]} cxd4 {[%emt 0:00:04]} 30. Rxd4 {[%emt 0:00:05]} exd4 {[%emt 0:00:59]} 31. Rxe7 {[%emt 0:00:00]} Rxe7 {[%emt 0:00:45]} 32. Qxd4 {[%emt 0:00:11]} Kg8 {[%emt 0:00:37]} 33. Qxd6 {[%emt 0:00:12]} Rff7 {[%emt 0:00:23]} 34. Qd8+ {[%emt 0:00:42]} Kg7 {[%emt 0:00:03]} 35. Qd4+ {[%emt 0:00:01]} Kg8 {[%emt 0:00:02]} 36. Qd8+ {[%emt 0:00:08]} Kg7 {[%emt 0:00:02]} 37. Qd4+ {[%emt 0:00:01]} Kg8 {[%emt 0:00:02]} 38. c5 {[%emt 0:00:02]} Re2 {[%emt 0:00:21]} 39. Qc4 {[%emt 0:00:53]} Kg7 {[%emt 0:00:12]} 40. c6 {[%emt 0:00:03]} Rc7 {[%emt 0:01:21]} 41. d4 {[%emt 0:00:14]} Re4 {[%emt 0:00:18]} 42. Qc3 {[%emt 0:00:22]} Kf6 {[%emt 0:00:08]} 43. d5+ {[%emt 0:00:12]} Ke7 {[%emt 0:00:08]} 44. Qc5+ {[%emt 0:00:15]} Kf6 {[%emt 0:00:04]} 45. Qd6+ {[%emt 0:00:04]} 1-0

[Event "European Online Club-ch-A 2021"]
[Site "Online"]
[Date "2021.03.27"]
[Round "4.3"]
[White "Ferster, Fabian"]
[Black "Czopor, Maciej"]
[Result "1-0"]
[ECO "A10"]
[WhiteElo "2149"]
[BlackElo "2239"]
[Annotator "NA"]
[PlyCount "31"]
[EventDate "2021.03.27"]
[EventType "team-tourn"]
[EventCountry "NET"]
[SourceTitle "playchess.com"]
[Source "ChessBase"]
[SourceQuality "1"]
[TimeControl "900+5"]

1. c4 {[%emt 0:00:00]} b6 {[%emt 0:00:04]} 2. e4 {[%emt 0:00:03]} Bb7 {[%emt 0:00:02]} 3. Nc3 {[%emt 0:00:02]} e5 {[%emt 0:00:06]} 4. Nf3 {[%emt 0:00:04]} Nc6 {[%emt 0:00:12]} 5. d4 {[%emt 0:00:17]} exd4 {[%emt 0:00:07]} 6. Nxd4 {[%emt 0:00:02]} Nf6 {[%emt 0:00:29]} 7. Bg5 {[%emt 0:00:09]} Be7 {[%emt 0:02:09]} 8. Nf5 {[%emt 0:00:58]} O-O {[%emt 0:00:31]} 9. Bd3 {[%emt 0:00:18]} Ne5 {[%emt 0:01:11]} 10. f4 {[%emt 0:01:02]} Nxd3+ {[%emt 0:01:01]} 11. Qxd3 {[%emt 0:00:04]} d6 {[%emt 0:04:39]} 12. O-O-O {[%emt 0:00:29]} Qe8 {[%emt 0:03:15]} 13. e5 {[%emt 0:02:32]} dxe5 {[%emt 0:00:12]} 14. fxe5 {[%emt 0:00:03]} Nd5 {[%emt 0:00:23]} 15. Qg3 {[%emt 0:01:36]} f6 {[%emt 0:01:46]} 16. Bh6 {[%emt 0:00:35]} 1-0

[Event "European Online Club-ch-A 2021"]
[Site "Online"]
[Date "2021.03.27"]
[Round "4.4"]
[White "Royal, Shreyas"]
[Black "Frick, Renato"]
[Result "1-0"]
[ECO "E08"]
[WhiteElo "2121"]
[BlackElo "1947"]
[Annotator "NA"]
[PlyCount "67"]
[EventDate "2021.03.27"]
[EventType "team-tourn"]
[EventCountry "NET"]
[SourceTitle "playchess.com"]
[Source "ChessBase"]
[SourceQuality "1"]
[TimeControl "900+5"]

1. d4 {[%emt 0:00:00]} Nf6 {[%emt 0:00:07]} 2. c4 {[%emt 0:00:02]} e6 {[%emt 0:00:04]} 3. g3 {[%emt 0:00:02]} d5 {[%emt 0:00:07]} 4. Nf3 {[%emt 0:00:07]} c6 {[%emt 0:00:03]} 5. Bg2 {[%emt 0:00:04]} Bb4+ {[%emt 0:00:14]} 6. Bd2 {[%emt 0:00:05]} Be7 {[%emt 0:00:05]} 7. O-O {[%emt 0:00:02]} b6 {[%emt 0:00:08]} 8. Qc2 {[%emt 0:00:06]} O-O {[%emt 0:00:28]} 9. Rd1 {[%emt 0:00:14]} Nbd7 {[%emt 0:00:22]} 10. Bf4 {[%emt 0:00:56]} Bb7 {[%emt 0:00:17]} 11. Ne5 {[%emt 0:00:08]} Rc8 {[%emt 0:01:12]} 12. Nc3 {[%emt 0:00:06]} Nxe5 {[%emt 0:00:09]} 13. dxe5 {[%emt 0:01:28]} Nd7 {[%emt 0:00:12]} 14. cxd5 {[%emt 0:00:02]} cxd5 {[%emt 0:00:20]} 15. e4 {[%emt 0:00:20]} g5 {[%emt 0:01:13]} 16. exd5 {[%emt 0:00:45]} exd5 {[%emt 0:00:07]} 17. Bxd5 {[%emt 0:00:42]} Bxd5 {[%emt 0:01:45]} 18. Rxd5 {[%emt 0:00:03]} gxf4 {[%emt 0:00:01]} 19. Qf5 {[%emt 0:00:03]} fxg3 {[%emt 0:00:25]} 20. hxg3 {[%emt 0:00:16]} Rc7 {[%emt 0:02:15]} 21. Rad1 {[%emt 0:01:34]} Qc8 {[%emt 0:01:17]} 22. Rxd7 {[%emt 0:01:18]} Rd8 {[%emt 0:02:07]} 23. Rxd8+ {[%emt 0:00:36]} Bxd8 {[%emt 0:00:05]} 24. Qxc8 {[%emt 0:00:30]} Rxc8 {[%emt 0:00:03]} 25. Rd7 {[%emt 0:00:01]} Bc7 {[%emt 0:00:03]} 26. f4 {[%emt 0:00:03]} Kf8 {[%emt 0:00:15]} 27. Nd5 {[%emt 0:00:48]} Bb8 {[%emt 0:00:11]} 28. Nf6 {[%emt 0:00:02]} Kg7 {[%emt 0:00:14]} 29. Kg2 {[%emt 0:00:20]} a6 {[%emt 0:00:52]} 30. Kh3 {[%emt 0:00:12]} b5 {[%emt 0:00:17]} 31. Kg4 {[%emt 0:00:19]} a5 {[%emt 0:00:16]} 32. Rd5 {[%emt 0:00:14]} Bc7 {[%emt 0:00:25]} 33. Rc5 {[%emt 0:00:17]} b4 {[%emt 0:00:18]} 34. Rxc7 {[%emt 0:00:09]} 1-0

[Event "European Online Club-ch-A 2021"]
[Site "Online"]
[Date "2021.03.27"]
[Round "4.5"]
[White "Celik, Hasan Huseyin"]
[Black "Grinev, Valeriy"]
[Result "1/2-1/2"]
[ECO "A45"]
[WhiteElo "2173"]
[BlackElo "2441"]
[Annotator "NA"]
[PlyCount "181"]
[EventDate "2021.03.27"]
[EventType "team-tourn"]
[EventCountry "NET"]
[SourceTitle "playchess.com"]
[Source "ChessBase"]
[SourceQuality "1"]
[TimeControl "900+5"]

1. d4 {[%emt 0:00:00]} Nf6 {[%emt 0:00:03]} 2. Bg5 {[%emt 0:00:10]} Ne4 {[%emt 0:00:04]} 3. Bf4 {[%emt 0:00:02]} c5 {[%emt 0:00:03]} 4. f3 {[%emt 0:00:05]} Qa5+ {[%emt 0:00:03]} 5. c3 {[%emt 0:00:01]} Nf6 {[%emt 0:00:02]} 6. d5 {[%emt 0:00:01]} e6 {[%emt 0:00:02]} 7. e4 {[%emt 0:00:02]} exd5 {[%emt 0:00:02]} 8. exd5 {[%emt 0:00:01]} d6 {[%emt 0:00:02]} 9. Na3 {[%emt 0:00:05]} Be7 {[%emt 0:00:05]} 10. Nc4 {[%emt 0:00:01]} Qc7 {[%emt 0:00:05]} 11. a4 {[%emt 0:00:10]} O-O {[%emt 0:00:07]} 12. Ne2 {[%emt 0:00:14]} Nh5 {[%emt 0:00:09]} 13. Be3 {[%emt 0:00:08]} f5 {[%emt 0:00:07]} 14. Nf4 {[%emt 0:00:25]} Nxf4 {[%emt 0:00:35]} 15. Bxf4 {[%emt 0:00:02]} Nd7 {[%emt 0:00:03]} 16. Be2 {[%emt 0:00:05]} Nb6 {[%emt 0:00:04]} 17. O-O {[%emt 0:00:07]} Nxc4 {[%emt 0:00:02]} 18. Bxc4 {[%emt 0:00:01]} Bd7 {[%emt 0:00:03]} 19. Re1 {[%emt 0:00:02]} Rae8 {[%emt 0:00:06]} 20. Qd3 {[%emt 0:00:04]} Bh4 {[%emt 0:00:09]} 21. g3 {[%emt 0:00:06]} Bf6 {[%emt 0:00:02]} 22. Bb5 {[%emt 0:00:02]} a6 {[%emt 0:00:14]} 23. Bxd7 {[%emt 0:00:12]} Qxd7 {[%emt 0:00:01]} 24. b3 {[%emt 0:00:04]} g6 {[%emt 0:00:24]} 25. Rab1 {[%emt 0:00:19]} Kf7 {[%emt 0:00:06]} 26. Kf2 {[%emt 0:00:02]} Rxe1 {[%emt 0:00:09]} 27. Rxe1 {[%emt 0:00:03]} Re8 {[%emt 0:00:01]} 28. Rxe8 {[%emt 0:00:08]} Kxe8 {[%emt 0:00:03]} 29. Be3 {[%emt 0:02:03]} b5 {[%emt 0:00:20]} 30. axb5 {[%emt 0:00:03]} axb5 {[%emt 0:00:02]} 31. c4 {[%emt 0:00:08]} bxc4 {[%emt 0:00:07]} 32. bxc4 {[%emt 0:00:02]} Qa4 {[%emt 0:00:42]} 33. Qe2 {[%emt 0:00:16]} Kf7 {[%emt 0:00:27]} 34. Bf4 {[%emt 0:00:04]} Qd7 {[%emt 0:00:04]} 35. Qa2 {[%emt 0:00:04]} Qe7 {[%emt 0:00:14]} 36. Qe2 {[%emt 0:00:59]} Bd4+ {[%emt 0:00:32]} 37. Kf1 {[%emt 0:00:05]} Qd7 {[%emt 0:00:30]} 38. h4 {[%emt 0:00:11]} Bf6 {[%emt 0:00:04]} 39. Kg2 {[%emt 0:00:05]} Bd4 {[%emt 0:00:14]} 40. Kh3 {[%emt 0:00:06]} Bf6 {[%emt 0:00:02]} 41. Kg2 {[%emt 0:00:13]} Bd4 {[%emt 0:00:02]} 42. g4 {[%emt 0:00:02]} fxg4 {[%emt 0:00:03]} 43. fxg4 {[%emt 0:00:02]} Bf6 {[%emt 0:00:10]} 44. Kg3 {[%emt 0:00:07]} Qe7 {[%emt 0:00:27]} 45. Qxe7+ {[%emt 0:00:14]} Kxe7 {[%emt 0:00:02]} 46. h5 {[%emt 0:00:03]} Kd7 {[%emt 0:00:14]} 47. Kf3 {[%emt 0:00:11]} Ke7 {[%emt 0:00:06]} 48. Bh6 {[%emt 0:00:14]} Kf7 {[%emt 0:00:13]} 49. Ke4 {[%emt 0:00:10]} Be5 {[%emt 0:00:15]} 50. Bg5 {[%emt 0:00:09]} Bh2 {[%emt 0:00:06]} 51. Be3 {[%emt 0:00:04]} Kf6 {[%emt 0:00:07]} 52. Bd2 {[%emt 0:00:56]} Be5 {[%emt 0:00:07]} 53. Ba5 {[%emt 0:00:36]} Kg5 {[%emt 0:00:18]} 54. hxg6 {[%emt 0:00:09]} Kxg6 {[%emt 0:00:45]} 55. Bd2 {[%emt 0:00:06]} Kf6 {[%emt 0:00:09]} 56. Kd3 {[%emt 0:00:05]} Kg6 {[%emt 0:00:28]} 57. Kc2 {[%emt 0:00:05]} Kf6 {[%emt 0:00:05]} 58. Kb3 {[%emt 0:00:05]} Ke7 {[%emt 0:00:03]} 59. Ka4 {[%emt 0:00:03]} Kd7 {[%emt 0:00:01]} 60. Kb5 {[%emt 0:00:02]} Bh2 {[%emt 0:00:03]} 61. Ka4 {[%emt 0:00:03]} Be5 {[%emt 0:00:09]} 62. Kb3 {[%emt 0:00:02]} Ke7 {[%emt 0:00:02]} 63. Bg5+ {[%emt 0:00:04]} Kf7 {[%emt 0:00:17]} 64. Kc2 {[%emt 0:00:02]} Kg6 {[%emt 0:00:05]} 65. Be7 {[%emt 0:00:02]} h5 {[%emt 0:00:13]} 66. gxh5+ {[%emt 0:00:02]} Kxh5 {[%emt 0:00:02]} 67. Kd3 {[%emt 0:00:01]} Kg6 {[%emt 0:00:03]} 68. Ke4 {[%emt 0:00:03]} Bh2 {[%emt 0:00:13]} 69. Bh4 {[%emt 0:00:04]} Be5 {[%emt 0:00:05]} 70. Be1 {[%emt 0:00:02]} Kf6 {[%emt 0:00:04]} 71. Bd2 {[%emt 0:00:04]} Bh2 {[%emt 0:00:03]} 72. Bc3+ {[%emt 0:00:08]} Kg6 {[%emt 0:00:04]} 73. Be1 {[%emt 0:00:14]} Kf6 {[%emt 0:00:03]} 74. Bh4+ {[%emt 0:00:02]} Kg6 {[%emt 0:00:03]} 75. Bf2 {[%emt 0:00:02]} Kf6 {[%emt 0:00:02]} 76. Be3 {[%emt 0:00:07]} Kg6 {[%emt 0:00:04]} 77. Bd2 {[%emt 0:00:01]} Kf6 {[%emt 0:00:03]} 78. Ba5 {[%emt 0:00:02]} Kg6 {[%emt 0:00:03]} 79. Bd8 {[%emt 0:00:02]} Bg3 {[%emt 0:00:06]} 80. Kf3 {[%emt 0:00:03]} Be5 {[%emt 0:00:03]} 81. Kg4 {[%emt 0:00:01]} Bh2 {[%emt 0:00:05]} 82. Be7 {[%emt 0:00:04]} Be5 {[%emt 0:00:03]} 83. Bg5 {[%emt 0:00:02]} Bh2 {[%emt 0:00:03]} 84. Bd2 {[%emt 0:00:03]} Kf6 {[%emt 0:00:07]} 85. Bc3+ {[%emt 0:00:03]} Kg6 {[%emt 0:00:11]} 86. Bb2 {[%emt 0:00:11]} Bg1 {[%emt 0:00:18]} 87. Bc1 {[%emt 0:00:09]} Bh2 {[%emt 0:00:03]} 88. Bg5 {[%emt 0:00:02]} Be5 {[%emt 0:00:03]} 89. Bd2 {[%emt 0:00:02]} Kf6 {[%emt 0:00:10]} 90. Bg5+ {[%emt 0:00:03]} Kg6 {[%emt 0:00:02]} 91. Bd2 {[%emt 0:00:03]} 1/2-1/2